bitfinex/quotes_ETHUSD_20240927
["timestamp","ask_amount","ask_price","bid_price","bid_amount"]
[1727437342427,3.77015,2652.5,2651.9,3.0]
[1727437342626,3.77025,2652.4,2651.9,3.0]
[1727437343029,3.77032,2652.3,2651.9,3.0]
[1727437346063,3.77032,2652.3,2651.7,4.19779989]
[1727437346244,3.77032,2652.3,2651.8,3.77098]
[1727437346447,3.77032,2652.3,2651.9,3.0]
[1727437346644,3.77032,2652.3,2651.9,6.77087]
[1727437346867,3.77021,2652.4,2651.9,6.77087]
[1727437347060,3.77005,2652.5,2652.0,3.77068]
[1727437347259,3.76989,2652.6,2652.1,3.77059]
[1727437347746,3.77004,2652.5,2651.9,10.54161]
[1727437347947,3.77004,2652.5,2652.0,5.43481275]
[1727437349436,3.77004,2652.5,2652.0,1.66419275]
[1727437349882,3.77004,2652.5,2651.9,3.77074]
[1727437350082,3.77018,2652.4,2651.9,3.77074]
[1727437350239,3.81119952,2652.6,2651.7,3.0]
[1727437350442,3.77054,2652.2,2651.7,1.034]
[1727437350772,7.54112,2652.2,2651.7,1.034]
[1727437352066,7.5411,2652.2,2651.7,1.034]
[1727437352571,7.5411,2652.2,2651.6,11.11121]
[1727437352572,3.77085,2652.0,2651.6,7.34]
[1727437352874,7.54172,2652.0,2651.6,7.34]
[1727437353171,3.77089,2651.9,2651.6,7.34]
[1727437353380,3.77102,2651.8,2651.6,7.34]
[1727437353597,3.77102,2651.8,2651.4,3.0]
[1727437353795,3.77102,2651.8,2651.4,3.72548445]
[1727437354658,3.77088,2651.9,2651.4,4.49696445]
[1727437356097,3.77168,2651.4,2651.0,7.34]
[1727437356394,3.77168,2651.4,2650.8,3.77236]
[1727437356395,3.77175,2651.3,2650.8,3.77236]
[1727437356581,3.77175,2651.3,2650.8,4.526854]
[1727437356895,3.77167,2651.4,2650.8,4.526854]
[1727437357103,7.54339,2651.4,2650.8,4.526854]
[1727437357410,3.77167,2651.4,2650.9,3.77229]
[1727437357574,3.77137,2651.6,2651.0,0.07543655]
[1727437357760,3.77137,2651.6,2651.1,3.77191]
[1727437359588,7.54275,2651.6,2651.1,3.77191]
[1727437360116,3.77146,2651.5,2650.9,8.6743364]
[1727437360294,3.77146,2651.5,2651.0,3.77214]
[1727437360609,3.77146,2651.5,2651.0,5.02068659]
[1727437361269,3.77146,2651.5,2651.0,1.24854659]
[1727437361788,3.7716,2651.4,2651.0,1.24854659]
[1727437361991,3.7716,2651.4,2650.9,3.77219]
[1727437363878,3.7716,2651.4,2650.7,6.77249]
[1727437363879,3.77184,2651.3,2650.8,3.0]
[1727437364074,3.7716,2651.4,2650.8,3.0]
[1727437364290,3.77189,2651.2,2650.8,3.0]
[1727437364493,3.77189,2651.2,2650.6,6.77272]
[1727437364714,7.54387,2651.2,2650.7,1.788548]
[1727437364877,3.77202,2651.1,2650.7,1.788548]
[1727437365104,3.81119952,2651.6,2650.6,3.0]
[1727437365305,3.77216,2651.0,2650.6,3.0]
[1727437366404,3.7723,2650.9,2650.6,3.0]
[1727437367083,7.54421,2651.1,2650.6,3.0]
[1727437368069,3.77219,2651.0,2650.6,3.0]
[1727437368695,3.77196,2651.2,2650.6,3.677279]
[1727437369004,3.77185,2651.3,2650.9,3.77229]
[1727437369203,3.77147,2651.5,2650.9,3.84772834]
[1727437369204,3.77159,2651.4,2650.9,3.84772834]
[1727437369413,3.77174,2651.3,2650.9,3.84772834]
[1727437370171,3.77174,2651.3,2650.9,3.77229]
[1727437370498,3.77174,2651.3,2650.9,1.14313779]
[1727437371011,3.77159,2651.4,2650.9,4.91542779]
[1727437371177,3.7718,2651.3,2650.9,1.14313779]
[1727437371577,3.7718,2651.3,2650.9,1.21857616]
[1727437371777,3.7718,2651.3,2651.0,0.88021957]
[1727437372197,7.54362,2651.3,2651.0,0.88021957]
[1727437372377,3.7718,2651.3,2651.0,0.88021957]
[1727437372693,3.77189,2651.2,2651.0,0.88021957]
[1727437372885,3.77189,2651.2,2650.8,0.07543837]
[1727437376019,3.7718,2651.3,2650.6,7.48847852]
[1727437376020,7.3,2651.6,2650.6,0.677279]
[1727437376188,3.77232,2650.9,2650.4,3.0]
[1727437376517,3.77232,2650.9,2650.3,3.83862136]
[1727437376518,7.54528,2650.7,2650.3,0.06557136]
[1727437376687,3.77259,2650.7,2650.2,3.77329]
[1727437377416,3.77244,2650.8,2650.2,3.77329]
[1727437377625,3.77259,2650.7,2650.2,3.77329]
[1727437377791,3.77245,2650.8,2650.3,8.30123726]
[1727437379330,3.77254,2650.8,2650.3,1.52810726]
[1727437380323,9.52266539,2651.3,2650.4,3.0]
[1727437380324,3.7721,2651.1,2650.4,3.0]
[1727437380526,3.7723,2650.9,2650.4,3.77291]
[1727437380727,3.7723,2650.9,2650.5,0.53764708]
[1727437381823,3.77188,2651.2,2650.7,3.77245]
[1727437382037,1.18141092,2651.7,2650.8,4.53073495]
[1727437382191,3.77154,2651.5,2650.9,3.77217]
[1727437382517,4.95266092,2651.7,2651.0,3.77214]
[1727437382723,3.77143,2651.6,2650.9,3.77217]
[1727437382923,3.77153,2651.5,2650.9,3.77217]
[1727437386030,3.7716,2651.4,2650.9,3.77217]
[1727437387733,3.77173,2651.3,2650.8,3.75836495]
[1727437387895,3.7716,2651.4,2650.8,3.75836495]
[1727437387896,3.77188,2651.2,2650.8,3.75836495]
[1727437388319,3.77174,2651.3,2650.9,1.1303345]
[1727437391213,3.77174,2651.3,2650.9,4.9026345]
[1727437393220,3.77174,2651.3,2650.9,1.1303345]
[1727437393451,3.77174,2651.3,2650.8,6.77242]
[1727437393660,7.54357,2651.3,2650.8,6.77242]
[1727437393955,3.77174,2651.3,2650.8,3.77242]
[1727437394262,3.77174,2651.3,2650.8,4.526909]
[1727437394444,3.77196,2651.2,2650.8,0.754489]
[1727437394643,3.77196,2651.2,2650.7,3.77247]
[1727437396052,3.77196,2651.2,2650.5,7.31050708]
[1727437396267,3.77224,2651.0,2650.6,3.77272]
[1727437396548,3.77224,2651.0,2650.5,7.31050708]
[1727437397627,1.18141092,2651.1,2650.6,0.73105071]
[1727437397833,1.18141092,2651.1,2650.7,3.77257]
[1727437398567,4.95344092,2651.1,2650.7,3.77257]
[1727437398872,1.18141092,2651.1,2650.7,3.77257]
[1727437399363,1.18141092,2651.0,2650.6,0.73105071]
[1727437399578,1.18141092,2651.1,2650.7,0.80414578]
[1727437399785,4.95345092,2651.1,2650.7,0.80414578]
[1727437400130,1.18141092,2651.1,2650.7,4.57665578]
[1727437400639,1.18141092,2651.0,2650.7,4.57665578]
[1727437401073,1.18141092,2651.0,2650.7,0.80414578]
[1727437403164,1.18141092,2651.0,2650.7,4.57670578]
[1727437404561,1.18141092,2651.0,2650.8,0.53831979]
[1727437404961,1.18141092,2651.1,2650.8,0.53831979]
[1727437405369,1.18141092,2651.0,2650.8,0.53831979]
[1727437405771,1.18141092,2651.1,2650.8,0.53831979]
[1727437406166,1.18141092,2651.0,2650.8,0.53831979]
[1727437406995,1.18141092,2651.1,2650.8,0.53831979]
[1727437407193,1.18141092,2651.0,2650.8,0.53831979]
[1727437408457,1.18141092,2651.0,2650.8,0.53831979]
[1727437414694,1.18141092,2651.0,2650.9,0.51149756]
[1727437414908,1.18141092,2651.1,2650.9,4.28378756]
[1727437415202,1.18141092,2651.2,2651.1,3.77201]
[1727437415355,1.18141092,2651.3,2651.2,3.77187]
[1727437415788,1.57521456,2651.5,2651.2,3.77187]
[1727437417177,1.98059366,2651.6,2651.2,3.77187]
[1727437417178,1.57521456,2651.6,2651.4,3.77159]
[1727437417377,1.98059366,2651.7,2651.5,2.31400101]
[1727437417378,1.57521456,2651.7,2651.5,2.31400101]
[1727437417672,1.57521456,2651.7,2651.5,1.76076546]
[1727437418400,1.57521456,2651.7,2651.4,3.77159]
[1727437418703,1.57521456,2651.7,2651.4,3.84701265]
[1727437419059,1.57521456,2651.8,2651.4,4.25281949]
[1727437419963,1.57521456,2651.8,2651.4,4.17739684]
[1727437420572,1.57521456,2651.8,2651.4,4.25282054]
[1727437421711,1.57521456,2651.9,2651.7,3.812508]
[1727437422004,1.57521456,2652.1,2651.9,3.77078]
[1727437422198,1.57521456,2652.2,2651.9,3.77078]
[1727437422400,1.57521456,2652.3,2652.0,3.77072]
[1727437422599,1.97877918,2652.4,2652.0,3.77072]
[1727437422600,1.57521456,2652.4,2652.0,3.77072]
[1727437422763,1.57521456,2652.5,2652.1,3.77047]
[1727437422963,7.3,2652.6,2652.1,3.77047]
[1727437422964,1.57521456,2652.6,2652.1,3.77047]
[1727437423397,5.34503456,2652.7,2652.1,3.77047]
[1727437423675,5.34510456,2652.6,2652.1,3.77047]
[1727437424286,3.76989,2652.6,2652.0,3.84612506]
[1727437424494,5.34503456,2652.7,2652.0,3.84612506]
[1727437424839,3.76992,2652.6,2652.1,3.77059]
[1727437425398,3.76992,2652.6,2652.0,3.84612506]
[1727437425576,3.76992,2652.6,2652.0,5.06491815]
[1727437426774,3.77004,2652.5,2652.0,5.06491815]
[1727437426992,7.54015,2652.5,2652.0,5.06491815]
[1727437427188,7.54016,2652.5,2652.0,4.98951309]
[1727437427395,3.77004,2652.5,2652.0,1.21879309]
[1727437427696,3.77004,2652.5,2651.9,6.77087]
[1727437427697,3.77024,2652.4,2651.9,6.77087]
[1727437428109,3.77024,2652.4,2651.9,3.77087]
[1727437428404,3.77004,2652.5,2651.9,4.98213858]
[1727437428628,1.57521456,2652.8,2651.9,3.0]
[1727437428629,3.77034,2652.3,2651.9,3.0]
[1727437428830,3.77047,2652.2,2651.6,3.7712]
[1727437429148,3.77063,2652.1,2651.6,3.7712]
[1727437429492,3.77063,2652.1,2651.5,7.34]
[1727437429724,3.77063,2652.1,2651.4,7.54296]
[1727437429926,3.77096,2651.9,2651.2,3.77179]
[1727437430128,3.77109,2651.8,2651.2,3.77179]
[1727437430431,3.77119,2651.7,2651.0,3.77204]
[1727437430729,7.54247,2651.7,2651.0,4.883244]
[1727437430931,3.77119,2651.7,2651.0,4.883244]
[1727437431097,3.77119,2651.7,2651.1,3.77198]
[1727437431296,3.77119,2651.7,2651.1,3.84741222]
[1727437432123,3.77131,2651.6,2651.1,3.84741041]
[1727437432500,3.77131,2651.6,2651.1,3.77198]
[1727437433208,3.77159,2651.4,2651.0,3.0]
[1727437433421,7.5431,2651.5,2651.0,3.0]
[1727437433625,3.77154,2651.5,2651.0,3.0]
[1727437434496,3.77174,2651.3,2650.8,3.0]
[1727437434729,3.77174,2651.3,2650.8,6.77244]
[1727437435026,3.77187,2651.2,2650.8,3.64514943]
[1727437435243,3.77187,2651.2,2650.8,3.0]
[1727437435414,3.77203,2651.1,2650.6,6.77271]
[1727437436095,7.54355,2651.3,2650.7,3.77258]
[1727437436320,3.77174,2651.3,2650.7,5.561129]
[1727437436620,7.54356,2651.3,2650.7,5.561129]
[1727437436806,3.77174,2651.3,2650.7,5.561039]
[1727437436997,3.77188,2651.2,2650.7,5.561039]
[1727437438833,3.77211,2651.1,2650.6,3.0]
[1727437439243,3.77189,2651.2,2650.6,3.0]
[1727437439544,3.77189,2651.2,2650.6,3.46670319]
[1727437439876,3.77189,2651.2,2650.7,3.77254]
[1727437440166,7.54365,2651.3,2650.7,3.77254]
[1727437440470,3.77182,2651.3,2650.8,3.77242]
[1727437440611,3.77182,2651.3,2650.8,4.88113108]
[1727437444115,3.77182,2651.3,2650.6,3.46670319]
[1727437444313,3.77189,2651.2,2650.7,3.77164647]
[1727437446213,3.77182,2651.3,2650.7,3.77164647]
[1727437446455,7.54366,2651.3,2650.8,3.77244]
[1727437446752,7.54366,2651.3,2650.7,3.77258]
[1727437446753,3.7719,2651.2,2650.7,3.77258]
[1727437447257,3.7719,2651.2,2650.7,4.76489713]
[1727437447890,3.77182,2651.3,2650.8,3.77237]
[1727437448394,3.77154,2651.5,2651.0,3.77206]
[1727437449053,3.77154,2651.5,2651.0,7.54413]
[1727437449249,3.77154,2651.5,2651.0,3.77206]
[1727437449466,3.77154,2651.5,2651.0,4.149266]
[1727437452390,7.54255,2651.7,2651.1,3.77198]
[1727437452574,3.77125,2651.7,2651.1,3.77198]
[1727437452757,3.77125,2651.7,2651.1,4.5641046]
[1727437452957,3.7714,2651.6,2651.1,4.5641046]
[1727437453560,3.7714,2651.6,2651.1,0.7921246]
[1727437453760,3.77161,2651.4,2651.1,0.7921246]
[1727437453996,3.77161,2651.4,2650.9,3.77219]
[1727437454204,3.77161,2651.4,2650.7,8.57731513]
[1727437454205,3.77161,2651.4,2650.8,3.0]
[1727437454406,3.77161,2651.4,2650.7,4.76479713]
[1727437454407,3.77188,2651.2,2650.7,4.76479713]
[1727437454759,3.77188,2651.2,2650.7,8.53728713]
[1727437454995,3.77188,2651.2,2650.8,0.86127275]
[1727437455436,3.77188,2651.2,2650.8,4.63371275]
[1727437457193,3.77188,2651.2,2650.8,0.86127275]
[1727437458397,3.77206,2651.1,2650.5,14.11278]
[1727437458598,3.77206,2651.1,2650.6,3.0]
[1727437458798,3.77206,2651.1,2650.6,6.77264]
[1727437458996,3.77206,2651.1,2650.7,1.788539]
[1727437460352,3.77173,2651.3,2650.7,5.561089]
[1727437460512,7.54356,2651.3,2650.7,5.63653271]
[1727437460711,7.54356,2651.3,2650.7,3.84799371]
[1727437460936,3.77188,2651.2,2650.7,3.84799371]
[1727437461157,3.77188,2651.2,2650.7,3.77255]
[1727437464925,3.7716,2651.4,2650.9,3.77229]
[1727437465125,3.7716,2651.4,2650.9,4.71039744]
[1727437467360,7.5433,2651.4,2650.9,4.71039744]
[1727437467667,3.7716,2651.4,2650.9,4.71039744]
[1727437467838,7.54331,2651.4,2650.9,4.71039744]
[1727437468953,3.77175,2651.3,2650.9,0.93810744]
[1727437471899,3.77175,2651.3,2650.9,1.01354441]
[1727437472463,3.77175,2651.3,2650.9,0.93810744]
[1727437474310,5.34696456,2651.3,2650.8,5.53322059]
[1727437474467,5.34696456,2651.3,2650.8,5.60865758]
[1727437474807,5.34696456,2651.3,2650.8,5.60865759]
[1727437475009,5.34696456,2651.3,2650.8,3.77243]
[1727437475374,1.57521456,2651.2,2650.8,3.77243]
[1727437477412,1.57521456,2651.1,2650.8,0.52804947]
[1727437477636,3.77191,2651.2,2650.7,7.54505]
[1727437477916,5.34712456,2651.2,2650.7,7.54505]
[1727437478119,1.57521456,2651.2,2650.8,3.77241]
[1727437478284,1.57521456,2651.1,2650.8,3.77241]
[1727437478483,1.57521456,2651.1,2650.8,5.00298006]
[1727437478822,1.57521456,2651.2,2650.8,5.00298006]
[1727437479207,1.57521456,2651.2,2650.9,3.77223]
[1727437479506,1.57521456,2651.1,2650.8,6.76377065]
[1727437479689,1.57521456,2651.1,2650.9,0.67637707]
[1727437480479,1.57521456,2651.2,2650.9,0.67637707]
[1727437480884,1.57521456,2651.1,2650.9,0.67637707]
[1727437481078,1.57521456,2651.1,2650.8,6.76377065]
[1727437481528,1.57521456,2651.1,2650.8,5.00298006]
[1727437483215,1.57521456,2651.1,2650.8,1.23057006]
[1727437484089,1.57521456,2651.1,2650.8,5.00299006]
[1727437484702,1.57521456,2651.1,2650.9,3.77229]
[1727437485019,1.57521456,2651.2,2650.9,8.12030635]
[1727437485267,1.57521456,2651.2,2650.9,4.27257601]
[1727437485450,1.57521456,2651.3,2651.0,3.77211]
[1727437485649,1.57521456,2651.3,2651.1,0.8044686]
[1727437485864,1.57521456,2651.3,2651.0,3.77211]
[1727437486439,1.57521456,2651.3,2651.0,3.84754711]
[1727437486650,1.57521456,2651.4,2651.2,3.7718]
[1727437487336,5.75312825,2651.6,2650.9,2.2610766]
[1727437487337,1.57521456,2651.5,2650.9,2.2610766]
[1727437487562,1.57521456,2651.3,2651.0,3.0]
[1727437488660,1.57521456,2651.3,2651.0,7.8766226]
[1727437489538,5.34681456,2651.4,2651.0,7.8766226]
[1727437489739,1.57521456,2651.4,2651.0,4.1044726]
[1727437489957,1.57521456,2651.4,2651.1,3.77198]
[1727437494273,1.57521456,2651.5,2651.1,3.77198]
[1727437494477,1.57521456,2651.4,2651.1,3.77198]
[1727437495838,5.34667456,2651.5,2651.0,6.77215]
[1727437496082,1.57521456,2651.4,2651.0,6.77215]
[1727437496382,1.57521456,2651.4,2651.1,3.77201]
[1727437498475,5.34667456,2651.5,2651.0,3.0]
[1727437498686,5.34683456,2651.4,2651.0,6.77213]
[1727437500179,1.57521456,2651.4,2651.0,10.54421]
[1727437500354,6.45665484,2651.5,2651.1,3.77201]
[1727437500541,1.57521456,2651.4,2651.1,3.77201]
[1727437501054,5.34667456,2651.5,2651.1,3.77201]
[1727437502071,1.57521456,2651.5,2651.1,3.77201]
[1727437502573,1.57521456,2651.6,2651.1,5.53280059]
[1727437502773,1.57521456,2651.6,2651.1,5.60823067]
[1727437503086,1.57521456,2651.6,2651.4,3.77147]
[1727437503299,1.57521456,2651.7,2651.4,3.77147]
[1727437503464,1.57521456,2651.9,2651.7,3.77116]
[1727437503791,1.57521456,2652.1,2651.7,5.53195059]
[1727437504000,1.57521456,2652.2,2651.9,3.77078]
[1727437504211,1.57521456,2652.2,2652.1,5.53138059]
[1727437504502,1.57521456,2652.5,2652.3,3.77031]
[1727437504702,1.57521456,2652.8,2652.5,3.76991]
[1727437505101,1.57521456,2652.9,2652.5,3.76991]
[1727437505466,4.95827975,2653.0,2652.5,3.76991]
[1727437505779,4.95827975,2653.0,2652.5,3.76999]
[1727437505977,3.76952,2652.9,2652.4,3.77017]
[1727437506291,1.18524009,2652.8,2652.4,7.54022]
[1727437506478,6.14351984,2653.0,2652.5,3.77]
[1727437506863,2.37410984,2653.0,2652.6,3.76987]
[1727437507062,1.18524009,2653.0,2652.6,3.7698]
[1727437507290,1.18524009,2653.0,2652.6,7.53959]
[1727437507498,4.95444009,2653.1,2652.6,7.53959]
[1727437508106,4.95444009,2653.1,2652.6,3.76979]
[1727437508310,3.7692,2653.1,2652.6,7.53957]
[1727437508469,3.76905,2653.2,2652.7,3.76973]
[1727437508913,4.95413009,2653.3,2652.8,3.76958]
[1727437509085,3.7691,2653.2,2652.6,4.53127597]
[1727437509263,3.7691,2653.2,2652.6,3.76978]
[1727437509922,4.79868647,2653.3,2652.7,3.76967]
[1727437510210,3.76903,2653.2,2652.6,3.76978]
[1727437511572,3.76925,2653.1,2652.6,3.76978]
[1727437511771,3.76903,2653.2,2652.4,3.77007]
[1727437511970,3.76903,2653.2,2652.6,3.76986]
[1727437512467,3.76903,2653.2,2652.5,3.0]
[1727437512468,3.76941,2653.0,2652.5,3.0]
[1727437513588,3.76941,2653.0,2652.5,6.77002]
[1727437514507,3.76925,2653.1,2652.5,6.77002]
[1727437514709,3.76925,2653.1,2652.6,3.76987]
[1727437515312,3.76925,2653.1,2652.5,6.76994]
[1727437515611,3.76907,2653.2,2652.7,3.76973]
[1727437515977,3.7689,2653.3,2652.7,3.76973]
[1727437516177,3.7689,2653.3,2652.8,3.76952]
[1727437516387,3.76884,2653.4,2652.8,7.53903]
[1727437516589,3.76884,2653.4,2652.8,3.76951]
[1727437516920,3.76884,2653.4,2652.8,7.53901]
[1727437517121,3.76884,2653.4,2652.8,8.30044939]
[1727437517290,7.53766,2653.4,2652.8,8.30044939]
[1727437517792,7.53766,2653.4,2652.8,4.53093939]
[1727437517995,7.53766,2653.4,2652.8,8.30045939]
[1727437518184,7.53766,2653.4,2652.8,3.7695]
[1727437518690,3.81061084,2653.5,2652.6,3.76988]
[1727437518894,3.76911,2653.2,2652.7,0.376988]
[1727437519094,3.76933,2653.0,2652.4,3.77009]
[1727437519308,3.76933,2653.0,2652.5,3.0]
[1727437519518,3.76933,2653.0,2652.2,3.93021006]
[1727437519519,3.76982,2652.7,2652.2,3.93021006]
[1727437519727,3.76982,2652.7,2652.2,0.93021006]
[1727437519926,3.76982,2652.7,2652.1,3.77049]
[1727437519927,3.76982,2652.7,2652.1,7.54098]
[1727437520089,3.76982,2652.7,2652.2,3.77044]
[1727437524894,7.57980084,2653.1,2652.2,3.0]
[1727437525200,3.77003,2652.5,2652.1,3.0]
[1727437525400,3.76975,2652.7,2652.2,3.0]
[1727437525604,3.76997,2652.6,2652.2,3.0]
[1727437526007,3.77003,2652.5,2652.2,3.0]
[1727437526706,3.7699,2652.6,2652.2,3.0]
[1727437533242,1.75902241,2652.9,2652.1,0.07540587]
[1727437533243,3.76953,2652.9,2652.1,0.07540587]
[1727437533735,3.76953,2652.9,2652.2,3.77044]
[1727437533960,3.76953,2652.9,2652.4,3.77015]
[1727437534946,3.76926,2653.1,2652.5,3.77002]
[1727437535175,7.53857,2653.1,2652.5,3.77002]
[1727437535456,3.76926,2653.1,2652.6,3.76986]
[1727437535761,3.76926,2653.1,2652.7,3.76974]
[1727437535959,3.76898,2653.3,2652.8,3.76957]
[1727437536263,3.76903,2653.2,2652.8,3.76957]
[1727437536424,3.76898,2653.3,2652.8,7.61446407]
[1727437536627,3.76898,2653.3,2652.8,3.76951]
[1727437536835,3.76898,2653.3,2652.8,3.84489447]
[1727437537160,3.76898,2653.3,2652.9,3.76943]
[1727437537812,7.53797,2653.3,2652.7,6.84502448]
[1727437538012,3.76898,2653.3,2652.8,3.76958]
[1727437538236,3.76898,2653.3,2652.8,3.84496433]
[1727437540452,3.76898,2653.3,2652.8,3.84487435]
[1727437540629,3.76898,2653.3,2652.9,3.76945]
[1727437540955,4.95362009,2653.7,2653.0,3.7693]
[1727437541129,7.53678,2653.7,2653.2,3.76901]
[1727437541481,3.76838,2653.7,2653.2,4.53037834]
[1727437541839,3.76813,2653.9,2653.3,0.07537225]
[1727437542057,3.76813,2653.9,2653.2,4.53037834]
[1727437542058,4.95337009,2653.9,2653.2,3.76901]
[1727437542258,3.76833,2653.7,2653.3,0.38443823]
[1727437542463,3.76848,2653.6,2653.3,0.38443823]
[1727437542663,3.76861,2653.5,2653.3,0.38443823]
[1727437542877,3.76849,2653.6,2653.1,3.76913]
[1727437543178,3.76833,2653.7,2653.0,3.76928]
[1727437543179,3.76869,2653.5,2653.0,3.76928]
[1727437543363,3.7685,2653.6,2653.1,3.76913]
[1727437544852,3.76861,2653.5,2653.0,4.56715998]
[1727437545383,3.76861,2653.5,2653.1,0.756716]
[1727437546246,3.76884,2653.4,2652.9,3.0]
[1727437546480,3.76889,2653.3,2652.9,3.0]
[1727437547067,3.76861,2653.5,2652.9,6.76941]
[1727437547269,3.76861,2653.5,2653.0,1.053891]
[1727437547643,4.95385009,2653.5,2653.0,1.053891]
[1727437548288,3.76861,2653.5,2653.0,1.053891]
[1727437548582,3.76878,2653.4,2653.0,1.053891]
[1727437549176,1.18524009,2653.5,2652.8,3.0]
[1727437549344,1.18524009,2653.5,2652.8,6.7696]
[1727437549345,3.76896,2653.3,2652.8,6.7696]
[1727437549673,3.76904,2653.2,2652.8,3.0]
[1727437550198,3.7692,2653.1,2652.7,3.0]
[1727437550396,3.76953,2652.9,2652.3,3.77021]
[1727437550579,8.76414546,2652.9,2652.1,7.54097]
[1727437550778,3.76975,2652.7,2652.2,0.754097]
[1727437550977,4.95499009,2652.7,2652.1,3.77048]
[1727437551852,3.77004,2652.5,2652.0,3.77073]
[1727437552188,4.95499009,2652.7,2652.1,10.54098]
[1727437552746,4.95499009,2652.7,2651.6,14.92062537]
[1727437552747,3.77,2652.6,2652.0,3.0]
[1727437552952,4.95499009,2652.7,2652.0,6.77064]
[1727437553466,4.95499009,2652.7,2652.1,3.77049]
[1727437554499,4.95499009,2652.7,2652.2,3.77044]
[1727437554698,1.18524009,2652.7,2652.2,3.77044]
[1727437555493,4.95498009,2652.7,2652.2,3.77044]
[1727437556613,3.76974,2652.7,2652.2,3.77044]
[1727437558520,1.18524009,2652.7,2652.3,3.77031]
[1727437559505,4.95487009,2652.8,2652.3,3.77031]
[1727437560602,3.76985,2652.7,2652.1,3.7705]
[1727437560783,3.76991,2652.6,2652.1,3.7705]
[1727437560985,4.95515009,2652.6,2652.1,3.7705]
[1727437561178,7.53991,2652.6,2652.1,3.7705]
[1727437561406,7.53991,2652.6,2651.6,11.11125]
[1727437561407,3.77061,2652.1,2651.6,7.34]
[1727437561611,3.80937537,2652.1,2651.5,3.77137]
[1727437561822,3.77098,2651.9,2651.3,3.77165]
[1727437562118,3.80937537,2651.9,2651.3,4.882795]
[1727437562277,3.80937537,2651.9,2651.4,3.77157]
[1727437562479,7.58026537,2651.9,2651.4,3.77157]
[1727437563100,7.58026537,2651.9,2651.3,4.882795]
[1727437563101,3.77082,2652.0,2651.5,3.77142]
[1727437563415,3.77082,2652.0,2651.5,3.77136]
[1727437564491,3.77088,2651.9,2651.5,3.77136]
[1727437564699,3.77088,2651.9,2651.3,4.882765]
[1727437564929,3.77082,2652.0,2651.3,4.882765]
[1727437565134,3.77082,2652.0,2651.4,0.4882765]
[1727437565436,3.77082,2652.0,2651.5,3.77144]
[1727437566631,4.95579009,2652.2,2651.4,0.56370312]
[1727437566833,3.77055,2652.2,2651.7,7.5421]
[1727437567615,3.77055,2652.2,2651.7,3.77105]
[1727437567819,3.77038,2652.3,2651.8,3.77102]
[1727437567992,8.65349912,2652.4,2651.9,3.77087]
[1727437568192,3.77012,2652.5,2652.0,3.77064]
[1727437569392,11.06997,2652.6,2652.0,3.77064]
[1727437569600,7.3,2652.6,2652.1,3.77051]
[1727437569832,4.95494009,2652.8,2652.3,3.77027]
[1727437570191,3.76981,2652.7,2652.2,4.15504187]
[1727437572016,4.95470009,2652.9,2652.2,4.15504187]
[1727437572017,3.76967,2652.8,2652.3,3.77031]
[1727437572223,3.76967,2652.8,2652.3,4.57031049]
[1727437572424,1.18524009,2652.9,2652.3,4.57031049]
[1727437572425,4.95470009,2652.9,2652.3,4.57031049]
[1727437572754,8.87521456,2653.1,2652.3,4.57031049]
[1727437572755,4.95467009,2653.0,2652.5,3.77002]
[1727437573534,3.76946,2652.9,2652.4,3.77016]
[1727437575236,3.76946,2652.9,2652.4,7.54024]
[1727437575439,3.76946,2652.9,2652.4,8.30180373]
[1727437575644,3.76946,2652.9,2652.4,4.53164373]
[1727437576721,3.76967,2652.8,2652.4,0.76156373]
[1727437576944,3.76967,2652.8,2652.2,3.77033]
[1727437577449,3.76967,2652.8,2652.3,3.8456874]
[1727437577818,3.76981,2652.7,2652.1,6.77047]
[1727437578339,3.76981,2652.7,2652.2,3.77044]
[1727437578645,3.76981,2652.7,2652.3,1.054091]
[1727437579273,3.76967,2652.8,2652.3,1.054091]
[1727437579431,3.76975,2652.7,2652.3,1.054091]
[1727437584235,3.76975,2652.7,2652.3,4.824401]
[1727437584438,3.76961,2652.8,2652.3,4.824401]
[1727437584776,3.76961,2652.8,2652.4,0.8594771]
[1727437585237,3.76946,2652.9,2652.4,4.6295571]
[1727437585438,3.76946,2652.9,2652.4,0.8594771]
[1727437585635,3.76965,2652.8,2652.4,0.8594771]
[1727437585960,3.76946,2652.9,2652.5,0.56838681]
[1727437586352,7.53903,2652.9,2652.5,0.56838681]
[1727437586560,3.76963,2652.8,2652.5,0.56838681]
[1727437587770,4.95457009,2653.0,2652.5,0.56838681]
[1727437587771,3.76946,2652.9,2652.5,0.56838681]
[1727437587979,1.18524009,2653.2,2652.7,3.76963]
[1727437588188,1.18524009,2653.3,2652.9,3.76945]
[1727437588389,1.18524009,2653.4,2652.9,3.76937]
[1727437588678,3.76879,2653.4,2653.0,0.42293357]
[1727437590360,1.18524009,2653.5,2653.0,0.42293357]
[1727437590550,4.95388009,2653.5,2653.0,0.42293357]
[1727437590749,4.95388009,2653.5,2653.1,0.41922536]
[1727437591269,1.18524009,2653.5,2653.1,0.41922536]
[1727437591473,4.95379009,2653.6,2653.1,7.95742536]
[1727437591675,4.95379009,2653.6,2653.1,4.18826536]
[1727437591985,3.76862,2653.5,2653.1,0.41922536]
[1727437592148,4.95386009,2653.5,2653.1,0.41922536]
[1727437592495,1.18524009,2653.5,2653.1,0.41922536]
[1727437593476,4.95390009,2653.5,2653.1,0.41922536]
[1727437593867,1.18524009,2653.5,2653.1,0.41922536]
[1727437594088,1.18524009,2653.6,2653.2,4.18784254]
[1727437594269,1.57521456,2653.7,2653.2,4.18784254]
[1727437594270,4.95366009,2653.7,2653.2,4.18784254]
[1727437594473,1.18524009,2653.7,2653.2,4.18781254]
[1727437594675,4.95360009,2653.7,2653.2,4.18781254]
[1727437595702,1.18524009,2653.6,2653.2,4.18781254]
[1727437595899,4.95360009,2653.7,2653.3,0.41878125]
[1727437596396,1.18524009,2653.7,2653.3,0.41878125]
[1727437596601,1.18524009,2653.7,2653.4,3.76872]